fUSD/lending_fUSD_20260626
["ID","MTS","AMOUNT","RATE_DAILY","PERIOD"]
[426472869,1782429161000,153.62194116,0.00037261,120]
[426472871,1782429169000,251.46184804,0.000224,30]
[426472879,1782429450000,10000.0,0.00037261,120]
[426472881,1782429547000,173.90559382,0.00037254,120]
[426472882,1782429580000,486.01130922,0.00037254,120]
[426472883,1782429674000,151.0,0.00037254,120]
[426472884,1782429768000,1000.0,0.00037254,120]
[426472885,1782429772000,1000.0,0.00037254,120]
[426472886,1782429778000,1000.0,0.00037254,120]
[426472887,1782429784000,621.0,0.00037254,120]
[426472888,1782430102000,21231.79637625,0.00037254,120]
[426472891,1782430109000,-210.581385,0.00010295,2]
[426472892,1782430109000,-1053.80324185,0.00010599,2]
[426472893,1782430109000,-250.0,0.000107,2]
[426472894,1782430109000,-616.99433262,0.00010701,2]
[426472895,1782430109000,-150.0,0.00010704,2]
[426472889,1782430109000,-819.092222,0.00010285,2]
[426472897,1782430109000,-1503.47045553,0.00010801,2]
[426472896,1782430109000,-413.75319808,0.00010801,2]
[426472901,1782430109000,-580.21748669,0.00010976,2]
[426472900,1782430109000,-150.0,0.00010889,2]
[426472890,1782430109000,-177.92,0.00010295,2]
[426472899,1782430109000,-150.0,0.0001081,2]
[426472898,1782430109000,-1308.45643733,0.00010801,2]
[426472902,1782430110000,-1376.91912417,0.00010976,2]
[426472903,1782430113000,4362.65968208,0.00037254,120]
[426472913,1782430135000,-342.1237787,0.0001159,2]
[426472912,1782430135000,-212.75,0.00011577,2]
[426472910,1782430135000,-616.99433261,0.0001145,2]
[426472911,1782430135000,-163.21078892,0.00011499,2]
[426472907,1782430135000,-166.66,0.00011171,2]
[426472908,1782430135000,-250.0,0.00011325,2]
[426472906,1782430135000,-644.97847096,0.00010976,2]
[426472905,1782430135000,-790.96820718,0.00010976,2]
[426472904,1782430135000,-513.02295884,0.00010976,2]
[426472909,1782430135000,-166.66,0.00011406,2]
[426472915,1782430136000,-524.54,0.00011601,2]
[426472914,1782430136000,-664.9062213,0.0001159,2]
[426472916,1782430136000,-175.70364902,0.00011641,2]
[426472917,1782430136000,-166.66,0.00011641,2]
[426472919,1782430136000,-2085.55866689,0.00011776,2]
[426472920,1782430136000,-2803.86945631,0.00011776,2]
[426472918,1782430136000,-250.0,0.00011659,2]
[426472925,1782430159000,-885.2923297,0.00011776,2]
[426472924,1782430159000,-4078.14066783,0.00011776,2]
[426472923,1782430159000,-4078.14066783,0.00011776,2]
[426472928,1782430184000,-136.37392969,0.00011876,2]
[426472926,1782430184000,-3872.59821144,0.00011776,2]
[426472927,1782430184000,-250.0,0.00011826,2]
[426472930,1782430184000,-250.0,0.00011882,2]
[426472931,1782430184000,-1074.28,0.00011901,2]
[426472934,1782430184000,-1379.42607082,0.0001193,2]
[426472933,1782430184000,-1288.15,0.00011927,2]
[426472932,1782430184000,-236.83,0.00011901,2]
[426472929,1782430184000,-30.28607031,0.00011876,2]
[426472935,1782430185000,-466.05689893,0.0001193,2]
[426472940,1782430210000,-1333.51,0.00011964,2]
[426472941,1782430210000,-2490.85241623,0.00012027,2]
[426472939,1782430210000,-194.17,0.00011955,2]
[426472938,1782430210000,-250.0,0.00011942,2]
[426472937,1782430210000,-170.11974853,0.0001193,2]
[426472936,1782430210000,-3760.06728172,0.0001193,2]
[426472942,1782430231000,-861.53758377,0.00012027,2]
[426472943,1782430231000,-1852.42,0.0001203,2]
[426472945,1782430231000,-500.0,0.00012086,2]
[426472944,1782430231000,-166.21,0.00012038,2]
[426473006,1782430232000,-200.0,0.000137,5]
[426472976,1782430232000,-166.21,0.00012832,2]
[426472977,1782430232000,-1333.51,0.00012862,2]
[426472972,1782430232000,-1333.51,0.00012563,2]
[426472974,1782430232000,-150.0,0.00012832,2]
[426472978,1782430232000,-250.0,0.00012954,2]
[426472979,1782430232000,-538.54,0.00013057,2]
[426472980,1782430232000,-250.0,0.00013122,2]
[426472981,1782430232000,-150.0,0.0001314,2]
[426472983,1782430232000,-1333.51,0.00013161,2]
[426473019,1782430232000,-5930.50605,0.00013726,2]
[426472985,1782430232000,-166.21,0.0001323,2]
[426472987,1782430232000,-164.18563308,0.00013334,2]
[426472989,1782430232000,-1074.28,0.00013388,2]
[426472991,1782430232000,-236.83,0.00013388,2]
[426472997,1782430232000,-166.21,0.00013627,2]
[426472993,1782430232000,-7647.66979805,0.00013626,2]
[426472995,1782430232000,-640.9281,0.00013626,2]
[426472999,1782430232000,-508.3,0.00013698,2]
[426473002,1782430232000,-200.0,0.00013699,2]
[426473004,1782430232000,-2233.53,0.00013699,2]
[426472971,1782430232000,-166.21,0.00012435,2]
[426472973,1782430232000,-206.162716,0.00012626,2]
[426472956,1782430232000,-151.0,0.00012299,2]
[426472970,1782430232000,-160.0,0.00012416,2]
[426473008,1782430232000,-322.69531297,0.00013726,2]
[426472947,1782430232000,-16.68772768,0.00012121,2]
[426472946,1782430232000,-166.66,0.00012112,2]
[426472948,1782430232000,-753.05062842,0.00012121,2]
[426472949,1782430232000,-226.87169518,0.00012199,2]
[426472951,1782430232000,-122.26617596,0.00012199,2]
[426472954,1782430232000,-1333.51,0.00012264,2]
[426472952,1782430232000,-483.14796332,0.00012199,2]
[426472950,1782430232000,-273.12830482,0.00012199,2]
[426472953,1782430232000,-11.58019333,0.00012199,2]
[426472969,1782430232000,-160.0,0.00012414,2]
[426472955,1782430232000,-152.0,0.00012299,2]
[426472958,1782430232000,-94.5413333,0.00012299,2]
[426472959,1782430232000,-56.4586667,0.00012299,2]
[426472960,1782430232000,-151.0,0.00012299,2]
[426472963,1782430232000,-151.0,0.00012299,2]
[426472964,1782430232000,-200.0,0.00012318,2]
[426472966,1782430232000,-151.0,0.00012398,2]
[426472965,1782430232000,-166.66,0.00012347,2]
[426472962,1782430232000,-53.4586667,0.00012299,2]
[426472967,1782430232000,-896.1855333,0.000124,2]
[426472968,1782430232000,-17851.8044667,0.000124,2]
[426472957,1782430232000,-150.0,0.00012299,2]
[426473010,1782430232000,-4248.10191626,0.00013726,2]
[426472961,1782430232000,-96.5413333,0.00012299,2]
[426473017,1782430232000,-5106.53322759,0.00013726,2]
[426473047,1782430232000,-500.0,0.00013825,2]
[426473048,1782430232000,-500.0,0.00013825,2]
[426473051,1782430232000,-500.0,0.00013825,2]
[426473050,1782430232000,-473.20274283,0.00013825,2]
[426473053,1782430232000,-500.0,0.00013825,2]
[426473055,1782430232000,-500.0,0.00013825,2]
[426473067,1782430232000,-430.14935165,0.00013825,2]
[426473052,1782430232000,-500.0,0.00013825,2]
[426473057,1782430232000,-500.0,0.00013825,2]
[426473054,1782430232000,-468.1096648,0.00013825,2]
[426473058,1782430232000,-628.620908,0.00013825,2]
[426473056,1782430232000,-500.0,0.00013825,2]
[426473059,1782430232000,-500.0,0.00013825,2]
[426473060,1782430232000,-500.0,0.00013825,2]
[426473062,1782430232000,-500.0,0.00013825,2]
[426473061,1782430232000,-500.0,0.00013825,2]
[426473065,1782430232000,-500.0,0.00013825,2]
[426473066,1782430232000,-250.0,0.00013825,2]
[426473069,1782430232000,-43559.39775395,0.00013826,2]
[426473068,1782430232000,-6400.87707887,0.00013826,2]
[426473064,1782430232000,-500.0,0.00013825,2]
[426473049,1782430232000,-500.0,0.00013825,2]
[426473045,1782430232000,-500.0,0.00013825,2]
[426473063,1782430232000,-500.0,0.00013825,2]
[426473044,1782430232000,-500.0,0.00013825,2]
[426473041,1782430232000,-500.0,0.00013825,2]
[426473015,1782430232000,-11324.52494963,0.00013726,2]
[426473023,1782430232000,-40329.34357278,0.00013726,2]
[426473026,1782430232000,-400.0,0.000138,5]
[426473028,1782430232000,-204.69164993,0.00013824,2]
[426473027,1782430232000,-500.0,0.00013824,2]
[426473031,1782430232000,-500.0,0.00013824,2]
[426473025,1782430232000,-1228.46228031,0.00013726,2]
[426473024,1782430232000,-1271.53771969,0.00013726,2]
[426473029,1782430232000,-500.0,0.00013824,2]
[426473032,1782430232000,-500.0,0.00013824,2]
[426473012,1782430232000,-1402.70171196,0.00013726,2]
[426473033,1782430232000,-500.0,0.00013824,2]
[426473030,1782430232000,-500.0,0.00013824,2]
[426473043,1782430232000,-174.43217526,0.00013825,2]
[426473046,1782430232000,-500.0,0.00013825,2]
[426473040,1782430232000,-502.98865094,0.00013825,2]
[426473039,1782430232000,-500.0,0.00013824,2]
[426473042,1782430232000,-500.0,0.00013825,2]
[426473037,1782430232000,-500.0,0.00013824,2]
[426473035,1782430232000,-500.0,0.00013824,2]
[426473036,1782430232000,-500.0,0.00013824,2]
[426473034,1782430232000,-500.0,0.00013824,2]
[426473038,1782430232000,-216.29378222,0.00013824,2]
[426473137,1782430238000,-308.95171016,0.00013824,2]
[426473131,1782430238000,-452.96742503,0.00013824,2]
[426473135,1782430238000,-500.0,0.00013824,2]
[426473133,1782430238000,-81.32442503,0.00013824,2]
[426473136,1782430238000,-500.0,0.00013824,2]
[426473134,1782430238000,-500.0,0.00013824,2]
[426473132,1782430238000,-418.67557497,0.00013824,2]
[426473118,1782430238000,-500.0,0.00013824,2]
[426473130,1782430238000,-47.03257497,0.00013824,2]
[426473122,1782430238000,-500.0,0.00013824,2]
[426473140,1782430238000,-449.51803492,0.00013824,2]
[426473116,1782430238000,-197.70806861,0.00013816,2]
[426473114,1782430238000,-150.0,0.00012149,2]
[426473125,1782430238000,-500.0,0.00013824,2]
[426473120,1782430238000,-500.0,0.00013824,2]
[426473128,1782430238000,-500.0,0.00013824,2]
[426473139,1782430238000,-500.0,0.00013824,2]
[426473145,1782430238000,-500.0,0.00013824,2]
[426473142,1782430238000,-500.0,0.00013824,2]
[426473123,1782430238000,-500.0,0.00013824,2]
[426473158,1782430238000,-442.71485799,0.00013825,2]
[426473159,1782430238000,-409.79995448,0.00013826,2]
[426473157,1782430238000,-57.28514201,0.00013825,2]
[426473156,1782430238000,-500.0,0.00013825,2]
[426473155,1782430238000,-500.0,0.00013825,2]
[426473154,1782430238000,-500.0,0.00013825,2]
[426473138,1782430238000,-191.04828984,0.00013824,2]
[426473151,1782430238000,-500.0,0.00013824,2]
[426473148,1782430238000,-500.0,0.00013824,2]
[426473150,1782430238000,-500.0,0.00013824,2]
[426473144,1782430238000,-500.0,0.00013824,2]
[426473146,1782430238000,-500.0,0.00013824,2]
[426473147,1782430238000,-500.0,0.00013824,2]
[426473143,1782430238000,-500.0,0.00013824,2]
[426473141,1782430238000,-50.48196508,0.00013824,2]
[426473149,1782430238000,-500.0,0.00013824,2]
[426473152,1782430238000,-500.0,0.00013824,2]
[426473165,1782430241000,-46201.3661058,0.00013826,2]
[426473166,1782430241000,-18264.9938942,0.00013826,2]
[426473174,1782430243000,-1822.2126048,0.00013826,2]
[426473173,1782430243000,-116.69327586,0.00013826,2]
[426473187,1782430246000,-378.58675497,0.00013826,2]
[426473186,1782430246000,-2750.29315464,0.00013826,2]
[426473184,1782430246000,-29025.91879894,0.00013826,2]
[426473185,1782430246000,-1281.73626349,0.00013826,2]
[426473183,1782430246000,-456.0,0.00013826,2]
[426473181,1782430246000,-825.62062013,0.00013826,2]
[426473182,1782430246000,-860.82244948,0.00013826,2]
[426473193,1782430680000,150.0,0.0001173,120]
[426473194,1782430713000,10000.0,0.00037262,120]
[426473198,1782430954000,550.3,0.00037262,120]
[426473197,1782430954000,550.3,0.00037262,120]
[426473196,1782430954000,550.3,0.00037262,120]
[426473195,1782430954000,550.3,0.00037262,120]
[426473201,1782430955000,550.3,0.00037262,120]
[426473200,1782430955000,550.3,0.00037262,120]
[426473199,1782430955000,550.3,0.00037262,120]
[426473203,1782430956000,550.3,0.00037262,120]
[426473202,1782430956000,550.3,0.00037262,120]
[426473205,1782430956000,550.3,0.00037262,120]
[426473204,1782430956000,550.3,0.00037262,120]
[426473208,1782430957000,550.3,0.00037262,120]
[426473207,1782430957000,550.3,0.00037262,120]
[426473206,1782430957000,550.3,0.00037262,120]
[426473212,1782430958000,550.3,0.00037262,120]
[426473211,1782430958000,546.04,0.00037262,120]
[426473210,1782430958000,550.3,0.00037262,120]
[426473209,1782430958000,550.3,0.00037262,120]
[426473214,1782430959000,550.3,0.00037262,120]
[426473213,1782430959000,550.3,0.00037262,120]
[426473216,1782430959000,550.3,0.00037262,120]
[426473215,1782430959000,550.3,0.00037262,120]
[426473219,1782430960000,550.52760183,0.00037262,120]
[426473218,1782430960000,550.3,0.00037262,120]
[426473217,1782430960000,550.3,0.00037262,120]
[426473221,1782431299000,2000.86,0.00037263,120]
[426473222,1782431313000,22366.61438499,0.00037263,120]
[426473224,1782431314000,-648.60202756,0.00010319,2]
[426473223,1782431314000,-340.0,0.00010216,2]
[426473225,1782431314000,-150.0,0.00010364,2]
[426473226,1782431314000,-150.0,0.00010513,2]
[426473227,1782431314000,-340.0,0.00010514,2]
[426473228,1782431314000,-500.0,0.00010537,2]
[426473230,1782431314000,-1709.5453179,0.00010552,2]
[426473231,1782431314000,-941.4546821,0.00010552,2]
[426473232,1782431314000,-835.98,0.00010554,2]
[426473233,1782431314000,-140.24376589,0.00010617,2]
[426473229,1782431314000,-250.0,0.0001055,2]
[426473235,1782431338000,-150.0,0.0001063,2]
[426473234,1782431338000,-9.75623411,0.00010617,2]
[426473244,1782431339000,-160.0,0.00011068,2]
[426473243,1782431339000,-342.28930635,0.0001104,2]
[426473242,1782431339000,-150.0,0.00010959,2]
[426473241,1782431339000,-172.26748682,0.00010959,2]
[426473240,1782431339000,-166.66,0.00010959,2]
[426473238,1782431339000,-187.35,0.00010826,2]
[426473245,1782431339000,-166.66,0.00011162,2]
[426473237,1782431339000,-1960.6,0.00010782,2]
[426473236,1782431339000,-252.87,0.00010639,2]
[426473239,1782431339000,-252.87,0.00010905,2]
[426473246,1782431339000,-236.94083405,0.00011171,2]
[426473247,1782431339000,-15.92916595,0.00011171,2]
[426473250,1782431339000,-166.66,0.00011365,2]
[426473248,1782431339000,-160.0,0.00011274,2]
[426473258,1782431339000,-250.0,0.00011576,2]
[426473256,1782431339000,-166.66,0.00011569,2]
[426473257,1782431339000,-247.89138039,0.00011576,2]
[426473254,1782431339000,-163.82,0.00011507,2]
[426473259,1782431339000,-119.42916499,0.00011576,2]
[426473255,1782431339000,-150.0,0.00011507,2]
[426473253,1782431339000,-1965.00415,0.00011449,2]
[426473251,1782431339000,-252.87,0.00011437,2]
[426473249,1782431339000,-250.0,0.00011351,2]
[426473252,1782431339000,-300.0,0.00011448,2]
[426473268,1782431364000,-166.66,0.00011772,2]
[426473267,1782431364000,-150.0,0.0001173,2]
[426473265,1782431364000,-252.87,0.00011702,2]
[426473266,1782431364000,-841.63,0.00011714,2]
[426473264,1782431364000,-275.79675041,0.00011639,2]
[426473262,1782431364000,-500.0,0.00011576,2]
[426473263,1782431364000,-320.9336,0.00011576,2]
[426473260,1782431364000,-301.0,0.00011576,2]
[426473261,1782431364000,-192.6708599,0.00011576,2]
[426473269,1782431365000,-200.0,0.000118,4]
[426473272,1782431365000,-162.426801,0.00011882,2]
[426473271,1782431365000,-835.98,0.00011874,2]
[426473270,1782431365000,-150.0,0.00011819,2]
[426473273,1782431415000,-1077.21739688,0.0001184,2]
[426473299,1782431432000,-1000.0,0.00012499,2]
[426473303,1782431432000,-500.0,0.00012747,2]
[426473295,1782431432000,-500.0,0.00012199,2]
[426473296,1782431432000,-169.57,0.00012199,2]
[426473293,1782431432000,-152.0,0.00012198,2]
[426473294,1782431432000,-876.30555547,0.00012198,2]
[426473292,1782431432000,-216.45114417,0.00012153,2]
[426473291,1782431432000,-495.63015035,0.00012146,2]
[426473288,1782431432000,-227.87101121,0.00012099,2]
[426473290,1782431432000,-1294.65824487,0.00012099,2]
[426473283,1782431432000,-1000.0,0.00012097,2]
[426473282,1782431432000,-166.66,0.00011975,2]
[426473302,1782431432000,-250.0,0.00012734,2]
[426473287,1782431432000,-332.6317613,0.00012099,2]
[426473285,1782431432000,-20022.7045,0.00012099,2]
[426473286,1782431432000,-2500.0,0.00012099,2]
[426473280,1782431432000,-172.0,0.00011936,2]
[426473281,1782431432000,-200.0,0.00011975,2]
[426473279,1782431432000,-400.0,0.000119,4]
[426473277,1782431432000,-431.16,0.0001184,2]
[426473276,1782431432000,-155.96519221,0.0001184,2]
[426473278,1782431432000,-1079.04302291,0.0001184,2]
[426473275,1782431432000,-269.65,0.00011684,2]
[426473289,1782431432000,-3958.96287273,0.00012099,2]
[426473297,1782431432000,-165.1,0.00012329,2]
[426473284,1782431432000,-39724.1659,0.00012098,2]
[426473301,1782431432000,-500.0,0.00012734,2]
[426473321,1782431432000,-500.0,0.0001382,2]
[426473324,1782431432000,-500.0,0.0001382,2]
[426473323,1782431432000,-439.08041594,0.0001382,2]
[426473322,1782431432000,-373.94101646,0.0001382,2]
[426473320,1782431432000,-500.0,0.0001382,2]
[426473317,1782431432000,-600.0,0.000138,5]
[426473319,1782431432000,-375.39190636,0.0001382,2]
[426473326,1782431432000,-500.0,0.0001382,2]
[426473318,1782431432000,-151.0,0.00013812,2]
[426473298,1782431432000,-500.0,0.00012473,2]
[426473325,1782431432000,-500.0,0.0001382,2]
[426473309,1782431432000,-8995.90069065,0.000133,2]
[426473316,1782431432000,-3958.96287272,0.0001379,2]
[426473308,1782431432000,-517.08720398,0.00013295,2]
[426473304,1782431432000,-3958.96287272,0.00012945,2]
[426473300,1782431432000,-255.0,0.00012566,2]
[426473313,1782431432000,-500.0,0.00013698,2]
[426473307,1782431432000,-835.98,0.00013193,2]
[426473314,1782431432000,-270.52,0.00013698,2]
[426473305,1782431432000,-300.0,0.00013,2]
[426473306,1782431432000,-500.0,0.00013021,2]
[426473315,1782431432000,-433.0,0.00013716,2]
[426473310,1782431432000,-500.0,0.00013698,2]
[426473311,1782431432000,-500.0,0.00013698,2]
[426473312,1782431432000,-500.0,0.00013698,2]
[426473327,1782431433000,-584.09382056,0.0001382,2]
[426473329,1782431433000,-128626.85274507,0.00013821,2]
[426473328,1782431433000,-500.0,0.0001382,2]
[426473332,1782431433000,-38108.37084317,0.00013821,2]
[426473330,1782431433000,-3667.97341838,0.00013821,2]
[426473334,1782431433000,-330.58840413,0.0001382,2]
[426473333,1782431433000,-1993.38480779,0.00013821,2]
[426473335,1782431433000,-39.91684604,0.00013821,2]
[426473337,1782431433000,-5722.88516066,0.00013821,2]
[426473336,1782431433000,-3813.95381473,0.00013821,2]
[426473331,1782431433000,-77519.81343112,0.00013821,2]
[426473367,1782431438000,-500.0,0.0001382,2]
[426473361,1782431438000,-500.0,0.0001382,2]
[426473363,1782431438000,-500.0,0.0001382,2]
[426473358,1782431438000,-500.0,0.0001382,2]
[426473360,1782431438000,-500.0,0.0001382,2]
[426473359,1782431438000,-500.0,0.0001382,2]
[426473362,1782431438000,-500.0,0.0001382,2]
[426473357,1782431438000,-500.0,0.0001382,2]
[426473356,1782431438000,-500.0,0.0001382,2]
[426473355,1782431438000,-500.0,0.0001382,2]
[426473353,1782431438000,-500.0,0.0001382,2]
[426473351,1782431438000,-500.0,0.0001382,2]
[426473354,1782431438000,-500.0,0.0001382,2]
[426473352,1782431438000,-500.0,0.0001382,2]
[426473348,1782431438000,-500.0,0.0001382,2]
[426473349,1782431438000,-488.39511182,0.0001382,2]
[426473347,1782431438000,-500.0,0.0001382,2]
[426473346,1782431438000,-214.29056665,0.0001382,2]
[426473345,1782431438000,-285.70943335,0.0001382,2]
[426473344,1782431438000,-152.0,0.00011684,2]
[426473350,1782431438000,-11.60488818,0.0001382,2]
[426473364,1782431438000,-417.69327536,0.0001382,2]
[426473366,1782431438000,-500.0,0.0001382,2]
[426473368,1782431438000,-500.0,0.0001382,2]
[426473365,1782431438000,-500.0,0.0001382,2]
[426473396,1782431438000,-166.21,0.00014025,2]
[426473394,1782431438000,-250.0,0.00014,2]
[426473387,1782431438000,-579.85520138,0.00013825,2]
[426473392,1782431438000,-800.0,0.000139,5]
[426473388,1782431438000,-500.0,0.00013863,2]
[426473399,1782431438000,-1177.27,0.000145,2]
[426473397,1782431438000,-213.37513771,0.00014218,2]
[426473384,1782431438000,-500.0,0.00013825,2]
[426473379,1782431438000,-500.0,0.00013825,2]
[426473390,1782431438000,-233.5,0.000139,2]
[426473377,1782431438000,-500.0,0.00013825,2]
[426473373,1782431438000,-208.63313888,0.00013824,2]
[426473375,1782431438000,-500.0,0.00013825,2]
[426473372,1782431438000,-1267807.74689154,0.00013821,2]
[426473374,1782431438000,-500.0,0.00013825,2]
[426473381,1782431438000,-500.0,0.00013825,2]
[426473370,1782431438000,-500.0,0.0001382,2]
[426473371,1782431438000,-500.0,0.0001382,2]
[426473382,1782431438000,-500.0,0.00013825,2]
[426473369,1782431438000,-500.0,0.0001382,2]
[426473484,1782431439000,-174.380432,0.00016438,2]
[426473482,1782431439000,-151.0,0.00016438,2]
[426473480,1782431439000,-500.0,0.00016438,2]
[426473476,1782431439000,-236.83,0.00016363,2]
[426473401,1782431439000,-1705.26,0.000145,2]
[426473468,1782431439000,-167.21,0.00016197,2]
[426473478,1782431439000,-151.0,0.00016438,2]
[426473470,1782431439000,-424.06328706,0.000162,2]
[426473472,1782431439000,-187.35,0.00016239,2]
[426473463,1782431439000,-233.5,0.000161,2]
[426473489,1782431439000,-23666.32,0.00016474,2]
[426473474,1782431439000,-3958.96287272,0.00016327,2]
[426473488,1782431439000,-151.0,0.00016438,2]
[426473523,1782431439000,-500.0,0.00017753,2]
[426473491,1782431439000,-346.87,0.00016474,2]
[426473503,1782431439000,-165.34,0.0001712,2]
[426473495,1782431439000,-9999.99,0.00016922,2]
[426473497,1782431439000,-1234.76,0.00016922,2]
[426473493,1782431439000,-172.23,0.00016712,2]
[426473501,1782431439000,-265.713336,0.00017026,2]
[426473499,1782431439000,-1294.6582448,0.00017014,2]
[426473505,1782431439000,-3958.96287272,0.00017173,2]
[426473507,1782431439000,-314.63,0.0001725,2]
[426473515,1782431439000,-999.99,0.00017728,2]
[426473513,1782431439000,-9999.99,0.00017728,2]
[426473527,1782431439000,-264.34839029,0.00017896,2]
[426473509,1782431439000,-220.205878,0.00017373,2]
[426473486,1782431439000,-151.0,0.00016438,2]
[426473465,1782431439000,-424.06328706,0.000161,2]
[426473437,1782431439000,-151.0,0.00015,2]
[426473462,1782431439000,-300.0,0.00016,2]
[426473403,1782431439000,-835.98,0.00014512,2]
[426473405,1782431439000,-164.30219152,0.00014528,2]
[426473407,1782431439000,-1294.6582448,0.00014556,2]
[426473417,1782431439000,-838.21536511,0.000149,2]
[426473425,1782431439000,-666.0,0.00014999,2]
[426473409,1782431439000,-3958.96287272,0.00014636,2]
[426473419,1782431439000,-158.7987981,0.000149,2]
[426473421,1782431439000,-736.0,0.00014982,2]
[426473429,1782431439000,-42694.73084993,0.00015,2]
[426473411,1782431439000,-236.83,0.00014876,2]
[426473413,1782431439000,-912.0,0.00014899,2]
[426473415,1782431439000,-1000.0,0.000149,5]
[426473423,1782431439000,-300.0,0.00014999,2]
[426473427,1782431439000,-917472.96998402,0.00015,2]
[426473431,1782431439000,-524.39,0.00015,2]
[426473439,1782431439000,-151.0,0.00015,2]
[426473433,1782431439000,-151.0,0.00015,2]
[426473447,1782431439000,-169.57,0.00015249,2]
[426473453,1782431439000,-3958.96287272,0.00015482,2]
[426473441,1782431439000,-151.13177012,0.00015068,2]
[426473435,1782431439000,-256.654647,0.00015,2]
[426473449,1782431439000,-332.63176128,0.00015317,2]
[426473443,1782431439000,-1960.6,0.00015094,2]
[426473445,1782431439000,-500.0,0.00015233,2]
[426473451,1782431439000,-199.5,0.00015364,2]
[426473455,1782431439000,-167.81,0.00015714,2]
[426473459,1782431439000,-835.98,0.00015831,2]
[426473457,1782431439000,-165.34,0.00015815,2]
[426473511,1782431439000,-9999.99,0.00017728,2]
[426473570,1782431439000,-151.0,0.00019762,2]
[426473525,1782431439000,-236.83,0.00017851,2]
[426473583,1782431439000,-151.0,0.00019762,2]
[426473576,1782431439000,-151.0,0.00019762,2]
[426473573,1782431439000,-151.0,0.00019762,2]
[426473579,1782431439000,-151.0,0.00019762,2]
[426473577,1782431439000,-151.0,0.00019762,2]
[426473578,1782431439000,-151.0,0.00019762,2]
[426473580,1782431439000,-151.0,0.00019762,2]
[426473575,1782431439000,-151.0,0.00019762,2]
[426473592,1782431439000,-151.0,0.0001981,2]
[426473586,1782431439000,-300.0,0.00019809,2]
[426473593,1782431439000,-151.0,0.0001981,2]
[426473594,1782431439000,-151.0,0.0001981,2]
[426473596,1782431439000,-277.272788,0.0001981,2]
[426473585,1782431439000,-151.0,0.00019762,2]
[426473598,1782431439000,-277.272788,0.0001981,2]
[426473595,1782431439000,-151.0,0.0001981,2]
[426473587,1782431439000,-666.0,0.00019809,2]
[426473591,1782431439000,-151.0,0.0001981,2]
[426473588,1782431439000,-151.0,0.0001981,2]
[426473589,1782431439000,-188.443308,0.0001981,2]
[426473590,1782431439000,-151.0,0.0001981,2]
[426473599,1782431439000,-277.272788,0.0001981,2]
[426473603,1782431439000,-7225.16839366,0.0001981,2]
[426473601,1782431439000,-151.0,0.0001981,2]
[426473602,1782431439000,-151.0,0.0001981,2]
[426473600,1782431439000,-277.272788,0.0001981,2]
[426473521,1782431439000,-299.99,0.00017728,4]
[426473574,1782431439000,-151.0,0.00019762,2]
[426473584,1782431439000,-151.0,0.00019762,2]
[426473571,1782431439000,-151.0,0.00019762,2]
[426473581,1782431439000,-151.0,0.00019762,2]
[426473582,1782431439000,-151.0,0.00019762,2]
[426473517,1782431439000,-150.99,0.00017728,2]
[426473529,1782431439000,-350.0,0.00018,2]
[426473534,1782431439000,-169.57,0.00018299,2]
[426473532,1782431439000,-3958.96287272,0.00018019,2]